Cogmind - Beta 13 @@@ ROGUE MODE // 2024.04.23 @ 13:41:04 Player: Phil Result: Destroyed by S-27 Virus with Autogun Performance ------------- Evolutions (3) 1500 Regions Visited (5) 1000 Robots Destroyed (34) 170 Value Destroyed (688) 688 Prototype IDs (0) 0 Alien Tech Used (0) 0 Bonus (0) 0 TOTAL SCORE: 3358 Bonus ------- None Cogmind --------- Core Integrity 0/700 Matter 300/300 Energy 100/100 System Corruption 23% Temperature Cool (0) Movement Core (50) Location -7/Factory Parts ------- > --- POWER (2) -------- (None) > --- PROPULSION (3) --- (None) > --- UTILITY (5) ------ Terrain Scan Processor > --- WEAPON (3) ------- (None) > --- INVENTORY (5) ---- Heat Sink Heat Sink Medium Matter Pod (100) Weight Redist. System Hardened Light Armor Plating Peak State ------------ > --- POWER ------------ Nuclear Core Nuclear Core > --- PROPULSION ------- Xenon Bombardment Thruster > --- UTILITY ---------- Large Storage Unit Terrain Scan Processor Improved Targeting Computer Component Analysis Suite > --- WEAPON ----------- EM Pulse Cannon EM Pulse Cannon EM Pulse Cannon > --- INVENTORY -------- Heat Sink Heat Sink Medium Matter Pod Medium Matter Pod Weight Redist. System Hardened Light Armor Plating [Rating: 28] Favorites ----------- Power Improved Ion Engine Engine Improved Ion Engine Power Core Nuclear Core Propulsion Carbon-fiber Leg Leg Carbon-fiber Leg Wheel Compact Wheel Flight Unit Xenon Bombardment Thruster Utility Large Storage Unit Device Component Analysis Suite Storage Large Storage Unit Processor Terrain Scan Processor Protection Hardened Light Armor Plating Weapon Light Assault Rifle Energy Gun Heavy EM Pulse Gun Energy Cannon EM Pulse Cannon Ballistic Gun Light Assault Rifle Launcher Rocket Launcher Build | -11 -10 -10 -9 -8 -7 ------- Run | Yrd Mat Min Mat Mat Fac Slots Evolved 6 | . . . 2 2 2 Power 1 | . . . . . 1 Propulsion 1 | . . . . 1 . Utility 3 | . . . 1 1 1 Weapon 1 | . . . 1 . . Parts Attached 38 | 6 4 7 9 4 8 Power 6 | 1 . 1 1 1 2 Engine 4 | 1 . 1 1 1 . Core 2 | . . . . . 2 Reactor . | . . . . . . Propulsion 11 | 2 . 3 3 2 1 Treads . | . . . . . . Leg 7 | 2 . . 3 2 . Wheel 3 | . . 3 . . . Hover . | . . . . . . Flight 1 | . . . . . 1 Utility 9 | 1 3 . 2 1 2 Device 1 | . . . . . 1 Storage 2 | 1 1 . . . . Processor 2 | . 1 . . 1 . Hackware . | . . . . . . Protection 4 | . 1 . 2 . 1 Artifact . | . . . . . . Weapon 12 | 2 1 3 3 . 3 Energy Gun 2 | . . . 2 . . Energy Cannon 3 | . . . . . 3 Ballistic Gun 6 | 2 1 2 1 . . Ballistic Cannon . | . . . . . . Launcher 1 | . . 1 . . . Special Weapon . | . . . . . . Impact Weapon . | . . . . . . Slashing Weapon . | . . . . . . Piercing Weapon . | . . . . . . Special Melee Weapon . | . . . . . . Unidentified Prototypes . | . . . . . . Parts Lost 34 | . 2 7 5 7 13 Power 6 | . . 1 1 2 2 Propulsion 9 | . . 3 1 1 4 Utility 7 | . 1 . 1 1 4 Weapon 12 | . 1 3 2 3 3 Highest Loss Streak 9 | . 2 5 2 6 9 To Critical Strikes . | . . . . . . Average Slot Usage (%) 84 | . 98 85 86 87 53 Engine 9 | . 14 12 10 7 . Core 1 | . . . . . 9 Leg 16 | . 28 8 15 27 3 Wheel 1 | . . 16 1 . . Storage 11 | . 14 14 11 9 7 Processor 9 | . 1 14 11 18 14 Protection 8 | . 11 . 10 6 . Energy Gun 2 | . . . 3 9 . Energy Cannon 1 | . . . . . 10 Ballistic Gun 19 | . 27 17 23 9 . Naked Turns . | . . . . . . Heaviest Build 53 | 14 36 29 39 39 53 Greatest Support 45 | 20 20 32 32 45 40 Greatest Overweight (x) 17 | . 1 1 2 . 17 Average Overweight (x) 1 | . . . 1 . 5 Largest Inventory Capacity 15 | 8 15 15 15 15 15 Average Capacity 14 | 7 13 15 15 15 14 Most Carried 12 | 5 10 10 12 9 9 Average Carried 8 | 3 8 7 9 8 6 Final Capacity 15 | 8 15 15 15 15 5 Final Carried 10 | 5 10 5 10 7 5 Class Distribution -------------------- 71% | Mutant 11% | Tank 8% | Scavenger-Tank 6% | Gunner Dominant Class ---------------- Mutant | -10/Materials Mutant | -10/Mines Mutant | -9/Materials Mutant | -8/Materials Mutant | -7/Factory Resources | -11 -10 -10 -9 -8 -7 ----------- Run | Yrd Mat Min Mat Mat Fac Matter Collected 1020 | 218 268 286 197 31 20 Remotely . | . . . . . . Salvage Created 970 | . 305 98 531 36 . Parts 66 | . 17 3 41 5 . Haulers Intercepted . | . . . . . . Recyclers Shooed 3 | . 2 . 1 . . Parts Field Recycled . | . . . . . . Retrieved Matter . | . . . . . . Parts Self-Destructed . | . . . . . . Prevented . | . . . . . . Kills | -11 -10 -10 -9 -8 -7 ------- Run | Yrd Mat Min Mat Mat Fac Combat Hostiles Destroyed 34 | . 11 6 14 3 . Melee 1 | . . . . 1 . Guns 31 | . 11 5 13 2 . AOE 2 | . . 1 1 . . Classes Destroyed 7 | . 2 2 3 . . Worker 1 | . . . 1 . . Recycler 1 | . . . 1 . . Swarmer 21 | . 6 3 9 3 . Grunt 5 | . 5 . . . . Sentry 5 | . . . 5 . . Demolisher 1 | . . 1 . . . Assembled 2 | . . 2 . . . Best Kill Streak 4 | . 3 3 4 2 . Combat Bots Only 4 | . 3 3 4 2 . Max Kills in Single Turn 2 | . 1 1 2 1 . Gunslinging 1 | . . . 1 . . Exploded 1 | . . 1 1 . . Melee 1 | . . . . 1 . Uniques/NPCs Destroyed . | . . . . . . Combat | -11 -10 -10 -9 -8 -7 -------- Run | Yrd Mat Min Mat Mat Fac Hostile Shots Fired 415 | . 68 34 111 114 88 Missed 115 | . 16 10 32 36 21 Damage Taken 4634 | . 536 587 940 778 1793 Core 1250 | . 39 209 110 190 702 Absorbed by Shields . | . . . . . . Core Remaining (%) 59 | 100 . . 72 65 . Volleys Fired 115 | . 33 21 45 12 4 Largest 3 | . 2 2 3 2 3 Hottest 189 | . 40 40 85 79 189 Shots Fired 226 | . 66 23 113 15 9 Gun 215 | . 66 21 113 15 . Cannon 9 | . . . . . 9 Launcher 2 | . . 2 . . . Special . | . . . . . . Kinetic 192 | . 66 21 102 3 . Thermal 12 | . . . . 12 . Explosive 2 | . . 2 . . . Electromagnetic 20 | . . . 11 . 9 Robot Hit Streak 13 | . 7 5 13 7 7 Robot Miss Streak 4 | . 3 2 3 4 2 Penetration Max . | . . . . . . Secondary Targets 4 | . 1 . 3 . . Max Gunslinging Chain 1 | . 1 . 1 . . Shots Hit Robots 142 | . 42 13 72 8 7 Core Hits 67 | . 17 10 33 5 2 Critical Kills 1 | . . . 1 . . Critical Parts Destroyed 1 | . . . 1 . . Critical Strikes 3 | . . . 2 . 1 Destroy 2 | . . . 2 . . Corrupt 1 | . . . . . 1 Melee Attacks . | . . . . . . Impact . | . . . . . . Slashing . | . . . . . . Piercing . | . . . . . . Sneak Attacks . | . . . . . . Combat Hostiles . | . . . . . . Follow-up Attacks . | . . . . . . Damage Inflicted 1603 | . 541 135 754 143 30 Guns 1451 | . 534 114 684 119 . Cannons 30 | . . . . . 30 Explosions 90 | . . 21 69 . . Melee . | . . . . . . Ramming 32 | . 7 . 1 24 . Kinetic 1269 | . 534 114 574 47 . Thermal 141 | . . . 69 72 . Explosive 21 | . . 21 . . . Electromagnetic 140 | . . . 110 . 30 Impact . | . . . . . . Slashing . | . . . . . . Piercing . | . . . . . . Highest Corruption 23 | . . . . . 23 Average Corruption 14 | . . . . . 14 Corruption Purged . | . . . . . . Corruption Blocked . | . . . . . . Effects 3 | . . . . . 3 Message Errors 1 | . . . . . 1 Data Loss (minor) 1 | . . . . . 1 Weapon Failures 1 | . . . . . 1 Overload Shots . | . . . . . . Overflow Damage 2 | . . . 2 . . Projectiles . | . . . . . . Explosions 2 | . . . 2 . . Melee . | . . . . . . Knockbacks . | . . . . . . Impact . | . . . . . . Kinetic . | . . . . . . Secondary . | . . . . . . Self-Inflicted Damage 39 | . . . 39 . . Shots 1 | . . . 1 . . Rammed . | . . . . . . Targets Rammed 14 | . 2 . 1 11 . Kicked 14 | . 2 . 1 11 . Crushed . | . . . . . . Highest Temperature 337 | . 20 . 246 110 337 Average Temperature 72 | . 8 . 66 53 186 Received Heat Transfer 777 | . 243 . 315 207 12 Effects 4 | . . . . . 4 Interference 4 | . . . . . 4 Siege Activations . | . . . . . . Robots Corrupted . | . . . . . . Combat Hostiles . | . . . . . . Parts Fried . | . . . . . . Impact Corruptions . | . . . . . . Robots Melted . | . . . . . . Combat Hostiles . | . . . . . . Parts Melted 1 | . . . 1 . . Heat Transferred 285 | . . . 100 185 . Parts Sabotaged . | . . . . . . Parts Stolen . | . . . . . . Parts Stripped . | . . . . . . Power Chain Reactions 1 | . . . 1 . . Alert | -11 -10 -10 -9 -8 -7 ------- Run | Yrd Mat Min Mat Mat Fac Peak Influence 222 | . 175 103 213 222 93 Initial 93 | . . 67 39 . 93 Average 69 | . 62 52 87 62 54 Maximum Alert Level 1 | . . . 1 1 . Low Security (%) 91 | 100 100 100 83 86 100 Level 1 8 | . . . 16 13 . Level 2 . | . . . . . . Level 3 . | . . . . . . Level 4 . | . . . . . . Level 5 . | . . . . . . High Security . | . . . . . . Max Security . | . . . . . . Squads Dispatched 5 | . 1 . 1 1 2 Investigation . | . . . . . . Extermination 1 | . . . . . 1 Reinforcement 3 | . 1 . 1 1 . Assault . | . . . . . . Garrison 1 | . . . . . 1 Intercept . | . . . . . . Searches Triggered . | . . . . . . Construction Impeded . | . . . . . . Haulers Reinforced . | . . . . . . Active Scanning Responses . | . . . . . . Cargo Convoy Interrupts . | . . . . . . Stealth | -11 -10 -10 -9 -8 -7 --------- Run | Yrd Mat Min Mat Mat Fac Distress Signals 8 | . 2 . 4 1 1 Communications Jammed . | . . . . . . Distress Signals . | . . . . . . Times Spotted 76 | . 19 6 20 26 5 Peak Tracking Total 14 | . 4 3 4 14 3 Tactical Retreats 6 | . 1 . 1 4 . Traps | -11 -10 -10 -9 -8 -7 ------- Run | Yrd Mat Min Mat Mat Fac Traps Triggered . | . . . . . . Indirectly . | . . . . . . Trap Hack Attempts . | . . . . . . Triggered . | . . . . . . Disarmed . | . . . . . . Reprogrammed . | . . . . . . Reused . | . . . . . . Traps Extracted . | . . . . . . Installed . | . . . . . . Triggered . | . . . . . . Machines | -11 -10 -10 -9 -8 -7 ---------- Run | Yrd Mat Min Mat Mat Fac Machines Disabled 1 | . 1 . . . . Max in Single Turn 1 | . 1 . . . . Machines Repaired . | . . . . . . Machines Dismantled . | . . . . . . Machines Sabotaged . | . . . . . . Overloaded Fab Kills . | . . . . . . Hacking | -11 -10 -10 -9 -8 -7 --------- Run | Yrd Mat Min Mat Mat Fac Machines Accessed 4 | . . . 2 1 1 Terminals 2 | . . . 1 1 . Fabricators . | . . . . . . Repair Stations 1 | . . . 1 . . Recycling Units . | . . . . . . Scanalyzers . | . . . . . . Garrison Access 1 | . . . . . 1 Total Hacks 7 | . . . 3 3 1 Successful 2 | . . . . 2 . Failed 5 | . . . 3 1 1 Catastrophic 1 | . . . . 1 . Database Lockouts . | . . . . . . Manual . | . . . . . . Terminals 4 | . . . 1 3 . Fabricators . | . . . . . . Repair Stations 2 | . . . 2 . . Recycling Units . | . . . . . . Scanalyzers . | . . . . . . Garrison Access 1 | . . . . . 1 Terminal Hacks 2 | . . . . 2 . Record 2 | . . . . 2 . Fabricator Hacks . | . . . . . . Repair Station Hacks . | . . . . . . Recycling Unit Hacks . | . . . . . . Scanalyzer . | . . . . . . Garrison Access Hacks . | . . . . . . Unauthorized Hacks . | . . . . . . Terminals . | . . . . . . Fabricators . | . . . . . . Repair Stations . | . . . . . . Recycling Units . | . . . . . . Scanalyzers . | . . . . . . Garrison Access . | . . . . . . Data Cores Recovered . | . . . . . . Used . | . . . . . . Hacking Detections 3 | . . . 1 1 1 Full Trace Events . | . . . . . . Feedback Events . | . . . . . . Feedback Blocked . | . . . . . . Robot Schematics Acquired . | . . . . . . Robots Built . | . . . . . . Authchips . | . . . . . . Time . | . . . . . . Total Robot Build Rating . | . . . . . . Part Schematics Acquired . | . . . . . . Parts Built . | . . . . . . Authchips . | . . . . . . Time . | . . . . . . Total Part Build Rating . | . . . . . . Parts Repaired . | . . . . . . Time . | . . . . . . Parts Recycled . | . . . . . . Recycled Matter . | . . . . . . Retrieved Matter . | . . . . . . Retrieved Components . | . . . . . . Parts Scanalyzed . | . . . . . . Part Schematics Acquired . | . . . . . . Parts Damaged . | . . . . . . Bothacking | -11 -10 -10 -9 -8 -7 ------------ Run | Yrd Mat Min Mat Mat Fac Used RIF Installer . | . . . . . . Robots Hacked . | . . . . . . Non-combat . | . . . . . . Combat . | . . . . . . Robot Hacks Applied . | . . . . . . Relay Couplers Released . | . . . . . . Fabnet Peak Effective % . | . . . . . . Robots Rewired . | . . . . . . Allies Hacked . | . . . . . . Hacks Repelled . | . . . . . . Allies | -11 -10 -10 -9 -8 -7 -------- Run | Yrd Mat Min Mat Mat Fac Total Allies . | . . . . . . Largest Group . | . . . . . . Highest-Rated Group . | . . . . . . Highest-Rated Ally . | . . . . . . Total Orders . | . . . . . . Ally Attacks . | . . . . . . Total Damage . | . . . . . . Kills . | . . . . . . Allies Corrupted . | . . . . . . Allies Melted . | . . . . . . Intel | -11 -10 -10 -9 -8 -7 ------- Run | Yrd Mat Min Mat Mat Fac Robot Analysis Total . | . . . . . . Derelict Logs Recovered . | . . . . . . Drone Launches . | . . . . . . Drone Recoveries . | . . . . . . Exploration | -11 -10 -10 -9 -8 -7 ------------- Run | Yrd Mat Min Mat Mat Fac Turns Passed 2953 | 118 692 211 1319 172 441 Spaces Moved 1292 | 102 302 133 562 102 91 Core 72 | 32 . . . . 40 Treads . | . . . . . . Legs 1036 | 70 302 33 481 102 48 Wheels 181 | . . 100 81 . . Hover . | . . . . . . Flight 3 | . . . . . 3 Fastest Speed 50 | 50 120 90 100 120 120 Average Speed 189 | 98 186 121 205 120 383 Slowest Speed 900 | 120 190 190 260 120 900 Overloaded Moves . | . . . . . . Propulsion Burnouts . | . . . . . . Robots Hopped . | . . . . . . Cave-ins Triggered 2 | . . . . . 2 Exploration Rate (%) 22 | 5 37 31 43 14 2 Regions Visited 5 Branch Regions 1 Pre-discovered Areas . | . . . . . . Known Exits Taken . | . . . . . . Unknown Exits Taken 5 | 1 1 1 1 1 . Scrap Searched . | . . . . . . Spaces Dug . | . . . . . . Terrain Destroyed 23 | . . 17 6 . . Melee . | . . . . . . Projectile . | . . . . . . AOE 23 | . . 17 6 . . Terrain Rammed . | . . . . . . Walls Destroyed . | . . . . . . Machines Disabled . | . . . . . . Actions | -11 -10 -10 -9 -8 -7 --------- Run | Yrd Mat Min Mat Mat Fac Total 1603 | 121 366 162 646 134 174 Wait 96 | 1 12 . 14 5 64 Move 1287 | 101 301 132 561 101 91 Hop . | . . . . . . Pick Up 47 | 12 11 2 14 1 7 Fast Attach . | . . . . . . Attach 37 | 6 3 7 9 4 8 Detach . | . . . . . . Swap 1 | . 1 . . . . Drop 6 | 1 3 . 2 . . Fire 115 | . 33 21 45 12 4 Melee . | . . . . . . Ram . | . . . . . . Kick 14 | . 2 . 1 11 . Crush . | . . . . . . Escape Stasis . | . . . . . . Rewire . | . . . . . . Trap . | . . . . . . Miscellaneous . | . . . . . . Route ------- -11/Scrapyard -10/Materials -10/Mines -9/Materials -8/Materials -7/Factory History --------- Turn | Location | Event 13 | -11/Scrapyard | Discovered new exit (range 15) 119 | -11/Scrapyard | Entered Materials 312 | -10/Materials | Build established: Mutant 769 | -10/Materials | Discovered new exit (range 14) 811 | -10/Materials | Entered Mines 816 | -10/Mines | Assembled infested the area 913 | -10/Mines | Lost 5 parts (1p2n2w) 939 | -10/Mines | Core integrity fell below 50% 948 | -10/Mines | Core integrity fell below 20% 994 | -10/Mines | Discovered new exit (range 8) 1022 | -10/Mines | Entered Materials 1022 | -9/Materials | Evolved 2 slots: Utility x1, Weapon x1 1368 | -9/Materials | Build established: Tank 1884 | -9/Materials | Build established: Mutant 2320 | -9/Materials | Discovered new exit (range 11) 2341 | -9/Materials | Entered another Materials area 2341 | -8/Materials | Evolved 2 slots: Propulsion x1, Utility x1 2494 | -8/Materials | Discovered new exit (range 16) 2513 | -8/Materials | Entered Factory 2513 | -7/Factory | Evolved 2 slots: Power x1, Utility x1 2541 | -7/Factory | Lost 6 parts (2p1n1u2w) 2637 | -7/Factory | Lost 3 parts (2n1u) 2906 | -7/Factory | Garrison activated, responded to threat 2908 | -7/Factory | Crushed by falling debris 2908 | -7/Factory | System corruption reached 10% 2914 | -7/Factory | Core integrity fell below 50% 2917 | -7/Factory | Crushed by falling debris 2947 | -7/Factory | Core integrity fell below 20% 2954 | -7/Factory | Destroyed by S-27 Virus with Autogun Last Messages --------------- System corrupted by crushing effect (+4). EM Pulse Cannon destroyed. System corrupted by crushing effect (+3). U-05 Engineer lays Concrete. Overheating: System interference. Terrain Scan Processor temporarily disabled. XDDNM>J5DF <657,S/BDQ,UJI& U-05 Engineer lays Concrete. 6W-HMF(g) destroyed. U-05 Engineer lays Concrete. Nuclear Core destroyed. U-05 Engineer lays Concrete. Nuclear Core destroyed. U-05 Engineer lays Concrete. System corrupted: Component data lost. U-05 Engineer lays Concrete. Lrg. Storage Unit destroyed. Extracted 20 matter. U-05 Engineer lays Concrete. [Achievement: First Step to Greatness] Map ----- +----------------------------------------------------+ | | | | | | | | | | | | | | | | | | | | | | | | | | | | | | | | | | | ###########???????????????????????? | | # [ #???????????????????????? | | # #???????????????????????? | | # * #???????????????????????? | | # * #???????????????????????? | | #;;;;""#"#########????????????????? | | # ; +??????????????? | | ;; #### ####????????????????? | | ; p @ # #???????????????????? | | = # #???????????????????? | | % # #???????????????????? | | # ###############+##### | | # | | s; | | s | | # "" "" "" ??? | | +[ "" "" ""????? | | #####"" """ """ ""????? | | ; ; #?#"" """ """ ""????? | | ; u ; #?#G """ """ """ ""? | | " ;##?#"" | | """; ;;;;#??#"" | | ## ## ###??# | | ?##?########????# | | ????############# #########? | | ????# #????????? | | ????# ########????????? | | ????# ###########?????? | | ????# #?????? | | ????# #?????? | | ???# +?????? | | ???# #?????? | | ???# ### #######+#+#?????? | +----------------------------------------------------+ Best States ------------- Heat Dissipation 34 Energy Generation 23 Energy Capacity 380 Matter Stores 300 Matter Capacity 300 Sight Range 16 Terrain Scan Density 85 Armor Coverage 225 Evasion (%) 55 Targeting Accuracy 6 Item Schematics ----------------- None Robot Schematics ------------------ None Fabricated ------------ Nothing Alien Tech Used ----------------- None Achievements -------------- Close Call First Step to Greatness I Survived The Infestation Made in Tau Ceti IV System Compromised Troublemaker Unlikely Earthworm Challenges ------------ None Game ------ Seed ShrapnelSchematicDetector Manual? 0 Play Time 00:25:08 Cumulative 0.6 hours Start 2024.04.23 @ 13:17:44 End 2024.04.23 @ 13:41:04 Sessions 3 Manual Loads 0 Difficulty Rogue Special Mode None Game No. 3 Rogue 1 Adventurer 2 Explorer 0 Win Type - Total 0 Types 0/0/0/0/0/0/0/0/0 Lore% 0 Gallery% 3 Achievement% 3 Wizard Run 0 Options --------- Layout 2 ASCII 0 Keyboard 0 Movement Numpad Keybinds 0 Fullscreen 1 Font 24/Smallcaps Map View 50x44 Zoom Use 0% Tactical HUD 0 Map Filters NONE Filters NONE Steam 1 RUN: 1f428d86-3242-481d-98a5-cb32067cbb00